[Event "15th Chennai GM Open 2025"]
[Site "Chennai"]
[Date "2025.01.07"]
[Round "8.5"]
[White "Deepan Chakkravarthy J."]
[Black "Kaustuv, Kundu"]
[Result "1-0"]
[ECO "A37"]
[WhiteElo "2413"]
[BlackElo "2409"]
[Annotator "TA"]
[PlyCount "79"]
[EventDate "2025.01.02"]
[EventType "swiss"]
[EventCountry "IND"]
[SourceTitle "playchess.com"]
[Source "ChessBase"]
[SourceQuality "1"]
[TimeControl "5400+30"]

{[%evp 11,79,0,0,-2,0,0,0,0,5,-5,12,0,33,20,30,0,8,0,44,16,24,8,23,7,6,9,52,0,0,-4,0,0,30,0,0,0,0,-11,0,-35,-34,-174,0,0,72,56,66,-12,-14,-27,6,6,66,46,113,108,101,107,104,121,179,126,393,420,445,435,472,459,470,460]} 1. c4 {[%emt 0:08:07]} c5 {[%emt 0:01:17]} 2. Nc3 {[%emt 0:00:06]} Nc6 {[%emt 0:00:18]} 3. g3 {[%emt 0:00:20]} g6 {[%emt 0:00:06]} 4. Bg2 {[%emt 0:00:05]} Bg7 {[%emt 0:00:06]} 5. d3 {[%emt 0:00:15]} d6 {[%emt 0:01:43]} 6. Nf3 {[%emt 0:01:18]} e6 {[%emt 0:03:45]} 7. O-O {[%emt 0:00:06]} Nge7 {[%emt 0:00:04]} 8. Bd2 {[%emt 0:01:14]} O-O {[%emt 0:00:23]} 9. a3 {[%emt 0:00:16]} a5 {[%emt 0:10:25]} 10. Qc1 {[%emt 0:24:43]} b6 {[%emt 0:06:53]} 11. Bh6 {[%emt 0:01:26]} Bb7 {[%emt 0:01:52]} 12. Bxg7 {[%emt 0:00:34]} Kxg7 {[%emt 0:00:07]} 13. h4 {[%emt 0:08:28]} h6 {[%emt 0:02:23]} 14. e3 {[%emt 0:08:01]} (14. Nb5 {is interesting.} Na7 15. Nxa7 Rxa7 16. b4) 14... Rc8 {[%emt 0:03:39]} 15. Qc2 {[%emt 0:01:02]} d5 {[%emt 0:11:26]} 16. Qb3 {[%emt 0:03:51]} Ba6 {[%emt 0:04:20]} 17. Rfd1 {[%emt 0:00:54]} d4 {[%emt 0:03:50]} 18. exd4 {[%emt 0:00:03]} cxd4 {[%emt 0:00:45]} 19. Nb5 {[%emt 0:00:06]} (19. Na4 $14) 19... e5 $11 {[%emt 0:07:43]} 20. Qa4 {[%emt 0:06:07]} Rb8 {[%emt 0:05:30]} 21. b4 {[%emt 0:01:52]} Bc8 {[%emt 0:01:32]} 22. Re1 {[%emt 0:04:37]} f6 {[%emt 0:00:19]} 23. Rab1 {[%emt 0:01:44]} Bf5 {[%emt 0:02:07]} 24. Qc2 {[%emt 0:00:08]} Qd7 {[%emt 0:02:37]} 25. Kh2 {[%emt 0:09:36]} g5 {[%emt 0:01:05]} 26. c5 {[%emt 0:02:08] [#]} (26. Kg1 $15) 26... bxc5 $2 {[%emt 0:07:18]} ({Black should try} 26... axb4 $1 $19 {Threatens to win with ...bxc5.} 27. axb4 Nd5 28. hxg5 hxg5 (28... Ncxb4 29. gxf6+ Rxf6 30. Qb3 $15)) 27. bxc5 {[%emt 0:00:14]} Bg4 {[%emt 0:10:33]} (27... Be6 $11) 28. Nd6 $16 {[%emt 0:01:07]} Nf5 {[%emt 0:03:58]} 29. Nxf5+ {[%emt 0:01:38]} ({Better is} 29. Ne4 $14) 29... Qxf5 $11 {[%emt 0:00:47]} 30. Ng1 {[%emt 0:00:28]} Qd7 $132 {[%emt 0:00:22][%mdl 2048] Black puts up resistance} 31. Rb6 {[%emt 0:01:53]} Ne7 {[%emt 0:02:05]} (31... Rbc8 $1 $11) 32. Reb1 $14 {[%emt 0:01:32]} Rxb6 {[%emt 0:00:19]} (32... Rbd8 $14) 33. cxb6 $16 {[%emt 0:01:28][%cal Bc5b6,Bb6b7][%mdl 32]} gxh4 {[%emt 0:00:22]} 34. b7 {[%emt 0:00:43]} hxg3+ {[%emt 0:01:54]} 35. fxg3 {[%emt 0:00:02]} Qd6 {[%emt 0:00:07]} (35... Rb8 $16 {is a better defense.}) 36. Rc1 {[%emt 0:03:34]} (36. Rb5 $18 {Strongly threatening Qc5.} Nf5 37. Qc8 (37. Rxa5 Ne3 $18)) 36... Be6 $2 {[%emt 0:03:53][%mdl 8192]} (36... Rb8 $16) 37. Qc5 $18 {[%emt 0:01:24]} Qxc5 {[%emt 0:00:52]} 38. Rxc5 {[%emt 0:00:03][%cal Bc1c5,Bc5a5,Ba5d5][%mdl 32]} Rb8 {[%emt 0:00:14]} 39. Rxa5 {[%emt 0:00:11]} Nd5 {[%emt 0:01:16]} 40. Rxd5 {[%emt 0:00:06]} ({Not} 40. Bxd5 Bxd5 41. Rxd5 Rxb7 $18) 1-0

[Event "15th Chennai GM Open 2025"]
[Site "Chennai"]
[Date "2025.01.07"]
[Round "8.6"]
[White "Manish Anto Cristiano F"]
[Black "Vaz, Ethan"]
[Result "1/2-1/2"]
[ECO "B90"]
[WhiteElo "2328"]
[BlackElo "2412"]
[Annotator "TA"]
[PlyCount "92"]
[EventDate "2025.01.02"]
[EventType "swiss"]
[EventCountry "IND"]
[SourceTitle "playchess.com"]
[Source "ChessBase"]
[SourceQuality "1"]
[TimeControl "5400+30"]

{[%evp 35,92,-31,0,-9,-14,0,0,0,0,-29,-19,-17,3,0,0,0,0,0,0,0,0,0,0,0,0,0,8,0,0,0,8,0,0,0,0,0,5,0,0,0,0,0,0,0,376,376,1070,0,0,0,2510,0,0,0,0,0,0,0,293]} 1. e4 {[%emt 0:00:03]} c5 {[%emt 0:02:53]} 2. Nf3 {[%emt 0:00:13]} d6 {[%emt 0:00:10]} 3. d4 {[%emt 0:00:15]} cxd4 {[%emt 0:00:01]} 4. Nxd4 {[%emt 0:00:11]} Nf6 {[%emt 0:00:02]} 5. Nc3 {[%emt 0:00:17]} a6 {[%emt 0:00:01]} 6. Bd3 {[%emt 0:00:17]} e5 {[%emt 0:00:35]} 7. Nde2 {[%emt 0:00:16]} Be7 {[%emt 0:00:33]} 8. O-O {[%emt 0:00:19]} O-O {[%emt 0:02:00]} 9. Ng3 {[%emt 0:00:34]} Be6 {[%emt 0:05:09]} 10. Nd5 {[%emt 0:00:16]} Bxd5 {[%emt 0:03:37]} 11. exd5 {[%emt 0:00:12]} g6 {[%emt 0:01:12]} 12. c4 {[%emt 0:05:52]} Nbd7 {[%emt 0:00:16]} 13. Be3 {[%emt 0:05:15]} a5 {[%emt 0:14:46]} 14. b3 {[%emt 0:09:09]} Ne8 {[%emt 0:11:14]} 15. Qd2 {[%emt 0:08:08]} f5 {[%emt 0:06:40]} 16. f4 {[%emt 0:00:16]} Bf6 {[%emt 0:10:41]} 17. Rac1 {[%emt 0:06:09]} exf4 {[%emt 0:02:29]} 18. Rxf4 {[%emt 0:09:33]} Bg5 {[%emt 0:07:05]} 19. Rff1 {[%emt 0:04:03]} Qb6 {[%emt 0:06:12]} 20. Bxb6 {[%emt 0:11:03]} Bxd2 {[%emt 0:00:01]} 21. Rcd1 {[%emt 0:00:52]} Bb4 {[%emt 0:07:35]} 22. Bf2 {[%emt 0:01:49]} Nef6 {[%emt 0:01:55]} 23. h3 {[%emt 0:02:30]} Bc5 {[%emt 0:06:21]} 24. Ne2 {[%emt 0:01:40]} a4 {[%emt 0:01:45]} 25. Nd4 {[%emt 0:03:11]} axb3 {[%emt 0:00:36]} 26. axb3 {[%emt 0:01:04]} Ne4 {[%emt 0:03:38]} 27. Bxe4 {[%emt 0:06:15]} fxe4 {[%emt 0:00:01]} 28. Be3 {[%emt 0:00:16]} Rxf1+ {[%emt 0:01:50]} 29. Rxf1 {[%emt 0:00:44]} Ra3 {[%emt 0:03:53]} 30. Re1 {[%emt 0:01:39]} Bb4 {[%emt 0:00:50]} 31. Rf1 {[%emt 0:04:28]} Bc5 {[%emt 0:00:18]} 32. Re1 {[%emt 0:00:23]} Bb4 {[%emt 0:00:38]} 33. Rf1 {[%emt 0:04:16]} Bc3 {[%emt 0:00:42]} 34. Rb1 {[%emt 0:04:54]} Ra2 {[%emt 0:00:22]} 35. b4 {[%emt 0:01:53]} b6 {[%emt 0:00:44]} 36. Ne6 {[%emt 0:02:25]} Re2 {[%emt 0:00:34]} 37. Bf4 {[%emt 0:00:18]} e3 {[%emt 0:00:42]} 38. Bxd6 {[%emt 0:01:36]} Rc2 {[%emt 0:00:17]} 39. c5 {[%emt 0:01:00]} e2 $2 {[%emt 0:00:49][%mdl 8192]} (39... bxc5 $1 $11 40. bxc5 e2) 40. c6 $18 {[%emt 0:00:06]} Rb2 $2 {[%emt 0:00:12]} (40... e1=B $2 41. cxd7 Bh4 42. Rf1 $18 (42. d8=R+ Bxd8 43. Nxd8 Rd2 $18) (42. d8=B Bxd8 43. Nxd8 Rd2 $18) (42. d8=Q+ Bxd8 43. Nxd8 h5 $18)) (40... Nf6) 41. Rc1 {[%emt 0:06:10]} (41. cxd7 $2 Rxb1+ 42. Kh2 Rh1+ (42... e1=B 43. d8=Q+ Kf7 44. Qf8#) 43. Kxh1 e1=Q+ $19 (43... e1=B 44. d8=Q+ Kf7 45. Qf8#)) (41. Re1 $142 Ra2 42. cxd7) 41... Rc2 $1 $18 {[%emt 0:00:01]} 42. Rb1 {[%emt 0:00:07]} (42. Rxc2 $5 e1=Q+ $8 (42... e1=B 43. c7 h5 44. c8=Q+ Kf7 45. Qxd7+ Kf6 46. Re2 Bh4 47. Qg7+ Kf5 48. Re5+ Bxe5 49. Qxe5#) 43. Kh2 $11) 42... Rb2 $1 {[%emt 0:00:33]} (42... e1=B $2 43. cxd7 Bf2+ 44. Kh2 $18) (42... Nf6 $2 43. c7 Bxb4 (43... e1=R+ $2 44. Rxe1 Bxb4 45. Bxb4 $18) 44. Bxb4 $18) 43. Rc1 $2 {[%emt 0:00:07]} (43. cxd7 $2 Rxb1+ 44. Kh2 Rh1+ (44... e1=B 45. d8=Q+ Kf7 46. Qf8#) 45. Kxh1 e1=Q+ $19 (45... e1=B 46. d8=Q+ Kf7 47. Qf8#)) (43. Re1 $18 {White threatens c7 and mate.} Nf8 44. c7) 43... Rc2 $1 $11 {[%emt 0:00:01]} 44. Rxc2 {[%emt 0:00:43]} (44. Rb1 Nf8 $18 (44... e1=B $2 45. Rxe1 Nf6 46. Rf1 $18) (44... Nf6 $2 45. c7 $18)) 44... e1=Q+ {[%emt 0:00:05]} (44... e1=B 45. c7 (45. cxd7 Bh4 $18)) 45. Kh2 {[%emt 0:00:04]} Nf6 $2 {[%emt 0:01:44][%mdl 8192]} (45... Bxb4 $2 46. Bg3 (46. cxd7 $2 {loses.} Bxd6+ 47. g3 Qxg3+ 48. Kh1 Qf3+ 49. Kg1 Qd1+ 50. Kf2 Qxc2+ $19) (46. Bxb4 Qe5+ 47. g3 Qf5 $18) 46... Qe4 47. cxd7 $18) (45... Be5+ $11 {and Black stays safe.} 46. Bxe5 Nxe5 (46... Qxe5+ 47. g3 $11)) 46. c7 $18 {[%emt 0:00:45]} Ng4+ {[%emt 0:00:10]} ({Not} 46... Nxd5 47. c8=Q+ (47. c8=R+ Kf7 $18) 47... Kf7 48. Ng5+ Kf6 49. Qd8+ (49. Nxh7+ Kg7 $18)) 1/2-1/2

[Event "15th Chennai GM Open 2025"]
[Site "Chennai"]
[Date "2025.01.07"]
[Round "8.7"]
[White "Mayank Chakraborty"]
[Black "Czebe, Attila"]
[Result "1-0"]
[ECO "B45"]
[WhiteElo "2457"]
[BlackElo "2278"]
[Annotator "TA"]
[PlyCount "91"]
[EventDate "2025.01.02"]
[EventType "swiss"]
[EventCountry "IND"]
[SourceTitle "playchess.com"]
[Source "ChessBase"]
[SourceQuality "1"]
[TimeControl "5400+30"]

{[%evp 23,91,46,34,35,66,39,38,33,41,30,25,-3,10,0,0,0,0,0,0,0,0,-29,107,109,114,101,100,112,125,119,121,121,129,122,131,120,127,127,135,127,128,125,162,162,179,186,268,28,58,39,52,53,278,278,333,312,414,414,414,437,1722,672,2143,1635,4614,4618,2441,1129,1368,987]} 1. e4 {[%emt 0:01:14]} c5 {[%emt 0:00:28]} 2. Nf3 {[%emt 0:00:07]} Nc6 {[%emt 0:00:08]} 3. d4 {[%emt 0:00:05]} cxd4 {[%emt 0:00:04]} 4. Nxd4 {[%emt 0:00:04]} Nf6 {[%emt 0:05:35]} 5. Nc3 {[%emt 0:00:12]} e6 {[%emt 0:00:03]} 6. Ndb5 {[%emt 0:00:05]} Bb4 {[%emt 0:00:05]} 7. a3 {[%emt 0:00:04]} Bxc3+ {[%emt 0:00:03]} 8. Nxc3 {[%emt 0:00:06]} d5 {[%emt 0:00:02]} 9. exd5 {[%emt 0:00:07]} exd5 {[%emt 0:00:11]} 10. Bd3 {[%emt 0:00:05]} O-O {[%emt 0:00:23]} 11. O-O {[%emt 0:00:05]} Bg4 {[%emt 0:00:03][%cal Bc8g4,Bg4h5,Bh5g6][%mdl 32]} 12. f3 {[%emt 0:02:48]} Bh5 {[%emt 0:00:04]} 13. Bg5 {[%emt 0:03:42]} Ne5 {[%emt 0:34:28]} 14. Re1 {[%emt 0:21:10]} Qb6+ {[%emt 0:10:55]} 15. Kh1 {[%emt 0:06:39]} Nxd3 {[%emt 0:00:19]} 16. Qxd3 {[%emt 0:00:07]} Bg6 {[%emt 0:00:20]} 17. Qd2 {[%emt 0:00:48]} Rad8 {[%emt 0:07:01]} 18. Rad1 {[%emt 0:06:07]} d4 {[%emt 0:08:11]} 19. Ne4 {[%emt 0:00:30]} Bxe4 {[%emt 0:00:05]} 20. Bxf6 {[%emt 0:02:33]} Qxf6 {[%emt 0:00:08]} 21. Rxe4 {[%emt 0:00:06]} Rfe8 {[%emt 0:00:12]} 22. Qxd4 {[%emt 0:01:21]} Qxd4 {[%emt 0:00:44]} (22... Rf8 $11 23. Qg1 Qxb2) 23. Rdxd4 $11 {[%emt 0:00:11][%mdl 4096] Endgame KRR-KRR. White is a pawn up.} Kf8 {[%emt 0:01:01] Threatens to win with ...Rxd4.} 24. h4 {[%emt 0:06:09] White is more active.} Rxd4 {[%emt 0:00:08]} 25. Rxd4 $16 {[%emt 0:00:01] KR-KR. White is a pawn up.} Re2 {[%emt 0:00:08]} 26. Rc4 {[%emt 0:01:39]} b5 {[%emt 0:00:04]} 27. Rc7 {[%emt 0:04:18]} a5 {[%emt 0:02:06][%cal Ba7a5,Ba5a4][%mdl 32]} 28. Kh2 {[%emt 0:01:30]} a4 {[%emt 0:01:12]} 29. h5 {[%emt 0:02:10]} Re1 {[%emt 0:00:01]} 30. Rb7 {[%emt 0:04:56]} Re2 {[%emt 0:00:05]} 31. Rxb5 {[%emt 0:00:12]} Rxc2 {[%emt 0:00:04]} 32. Rb7 {[%emt 0:00:42]} g5 {[%emt 0:02:33]} 33. Rb6 {[%emt 0:02:34]} Ke7 {[%emt 0:04:43]} 34. Kh3 {[%emt 0:02:02]} f5 {[%emt 0:00:17]} (34... Kf8 $142 35. g3 Rc4 36. Rb8+ Kg7) 35. g3 $2 {[%emt 0:02:27]} ({White should play} 35. Rh6 $18) 35... Rf2 $11 {[%emt 0:02:17]} 36. Rb7+ {[%emt 0:03:24]} Kf6 {[%emt 0:00:10]} 37. Rxh7 {[%emt 0:00:12] Strongly threatening Rh6+.} Rxf3 $2 {[%emt 0:00:10]} (37... f4 $1 $14) 38. Rh6+ $18 {[%emt 0:00:56]} Kf7 {[%emt 0:02:09]} 39. Rg6 {[%emt 0:01:39]} g4+ {[%emt 0:00:46]} 40. Kh4 {[%emt 0:00:09]} Rb3 {[%emt 0:00:12]} 41. Ra6 {[%emt 0:01:53]} Rxb2 {[%emt 0:00:33]} (41... f4 $142 42. gxf4 (42. Kxg4 fxg3 43. Kh3 Rxb2 $11) 42... g3) 42. h6 {[%emt 0:00:39]} (42. Kg5 $142 Rb3 43. Ra7+ (43. Rxa4 Rxg3 44. Kxf5 Rg1 $16) 43... Kf8 44. Kf6 (44. Rxa4 Rxg3 45. Kf6 Ke8 $18) (44. Kxf5 Rxg3 45. h6 Rh3 $18) (44. h6 Kg8 $18)) 42... Kg8 {[%emt 0:05:37]} 43. Kg5 {[%emt 0:00:47]} Kh7 {[%emt 0:00:04]} 44. Ra7+ {[%emt 0:00:07]} Kh8 {[%emt 0:00:02]} 45. Kxf5 {[%emt 0:00:52]} (45. Rxa4 $142 Rb6 46. Ra8+ (46. Kxf5 Kh7 $18) 46... Kh7 47. Ra7+ (47. Kxf5 Kxh6 48. Kxg4 Rb5 $18) 47... Kg8 48. a4 (48. Kxf5 Rxh6 49. Kxg4 Rd6 $18)) 45... Rb3 {[%emt 0:01:01]} 46. Kg5 {[%emt 0:00:08]} 1-0

[Event "15th Chennai GM Open 2025"]
[Site "Chennai"]
[Date "2025.01.07"]
[Round "8.8"]
[White "Vaidyanathan, Kannan"]
[Black "Sanket Chakravarty"]
[Result "0-1"]
[ECO "D38"]
[WhiteElo "1940"]
[BlackElo "2374"]
[Annotator "TA"]
[PlyCount "88"]
[EventDate "2025.01.02"]
[EventType "swiss"]
[EventCountry "IND"]
[SourceTitle "playchess.com"]
[Source "ChessBase"]
[SourceQuality "1"]
[TimeControl "5400+30"]

{[%evp 14,87,27,24,33,6,32,23,23,23,17,18,6,33,19,13,18,8,16,13,34,25,38,0,15,0,0,0,0,0,0,0,0,0,0,0,0,0,0,0,0,0,22,0,0,0,30,-8,0,0,0,-22,-20,-8,0,-308,-285,-492,-472,-407,-402,-375,-380,-29963,-508,-29973,-29972,-6115,-6079,-29994,-29995,-29995,-29996,-29996,-29997,-29999]} 1. d4 {[%emt 0:00:01]} Nf6 {[%emt 0:07:12]} 2. c4 {[%emt 0:00:08]} e6 {[%emt 0:00:09]} 3. Nc3 {[%emt 0:00:06]} d5 {[%emt 0:00:08]} 4. cxd5 {[%emt 0:00:08]} exd5 {[%emt 0:00:07]} 5. Bg5 {[%emt 0:00:02]} Bb4 {[%emt 0:00:18]} 6. Qc2 {[%emt 0:04:00]} c5 {[%emt 0:03:54]} 7. Nf3 {[%emt 0:07:32][%cal Bg1f3,Bf3d2,Bd2b3][%mdl 32]} Nbd7 {[%emt 0:02:08][%cal Bb8d7,Bd7f6,Bf6e4][%mdl 32]} 8. e3 {[%emt 0:01:11]} Qa5 {[%emt 0:00:25]} 9. Nd2 {[%emt 0:17:33] Prevents Ne4.} O-O {[%emt 0:03:49]} 10. Bxf6 {[%emt 0:06:09]} Nxf6 {[%emt 0:00:11] White has an edge.} 11. Nb3 {[%emt 0:00:26]} Bxc3+ {[%emt 0:16:01]} 12. bxc3 {[%emt 0:01:13]} Qa4 {[%emt 0:02:08]} 13. dxc5 {[%emt 0:01:33]} Qg4 {[%emt 0:00:46]} 14. Nd4 {[%emt 0:07:28] Inhibits Bf5.} Ne4 {[%emt 0:02:10]} 15. g3 {[%emt 0:05:49] And now f3 would win.} Nxc5 {[%emt 0:05:25]} 16. Bg2 {[%emt 0:00:00]} Be6 {[%emt 0:09:51]} 17. O-O {[%emt 0:00:00]} Rac8 {[%emt 0:03:29]} 18. f4 {[%emt 0:12:26]} Ne4 {[%emt 0:03:05]} 19. f5 {[%emt 0:02:29][%cal Of1f4]} Bd7 {[%emt 0:09:08]} (19... Rxc3 $2 20. Qb2 Bc8 (20... Qg5 $2 21. Rae1 $18) 21. Rf4 $18 (21. Bxe4 Rxe3 22. Bg2 Qg5 $18)) 20. Rf4 {[%emt 0:00:59]} Qg5 {[%emt 0:01:37]} 21. Bxe4 {[%emt 0:00:58]} dxe4 {[%emt 0:00:05]} 22. Qxe4 {[%emt 0:00:12]} Rxc3 {[%emt 0:00:53]} 23. Qxb7 {[%emt 0:00:58]} Rxe3 {[%emt 0:03:16]} 24. Qxd7 {[%emt 0:02:58][%cal Of4f2] Strongly threatening Rf2!} Rxg3+ $1 {[%emt 0:00:31]} 25. hxg3 {[%emt 0:01:23]} Qxg3+ {[%emt 0:00:06]} 26. Kf1 {[%emt 0:03:43][%cal Bg1f1,Bf1e2,Be2d3][%mdl 32]} Qxf4+ {[%emt 0:00:05]} 27. Ke2 {[%emt 0:00:39]} Qb8 {[%emt 0:07:00] White must now prevent ...Qb2+.} 28. Kd3 {[%emt 0:07:28]} Rd8 {[%emt 0:00:42]} 29. Qe7 {[%emt 0:01:44]} h6 {[%emt 0:04:47][%cal Od8d4]} 30. Qe4 {[%emt 0:01:46]} Qb5+ {[%emt 0:03:53]} (30... Qb2 31. Rg1 Qa3+ (31... Qxa2 32. Qe5 $11) 32. Ke2) 31. Ke3 {[%emt 0:00:24]} Qa4 {[%emt 0:00:06] ...Re8 is the strong threat.} 32. Nc6 {[%emt 0:01:50]} Qa3+ {[%emt 0:00:06]} 33. Kf4 {[%emt 0:01:33]} Rd3 {[%emt 0:00:08]} 34. Ne7+ $2 {[%emt 0:04:58][%mdl 8192] [#]} (34. Ne5 $1 $11 {and White has nothing to worry.} Rh3 35. Rg1 Qxa2 36. Rxg7+ Kxg7 37. f6+ Kg8 (37... Kxf6 38. Qf5+ Kg7 39. Qg4+ Kf8 40. Qc8+ Kg7 41. Qg4+ Kf6 42. Qf5+ Kg7 43. Qxh3 $11) 38. Qa8+ Kh7 39. Qe4+ Kg8 40. Qa8+ Kh7 41. Qe4+ Kg8) 34... Kf8 $1 $19 {[%emt 0:00:35]} 35. Ng6+ $2 {[%emt 0:06:14]} (35. Nc6 {is the only way for White.} Rh3 36. Qe7+ (36. Rg1 $2 Rh4+ 37. Rg4 Qc1+ 38. Ke5 Rxg4 $19) 36... Qxe7 37. Nxe7 Kxe7 38. Rc1 Rh4+ 39. Ke5 f6+ 40. Kd5) 35... fxg6 {[%emt 0:00:45][%mdl 4096] Endgame. KQR-KQR} 36. Qa8+ {[%emt 0:00:19]} Kf7 {[%emt 0:00:19]} 37. fxg6+ {[%emt 0:01:27] [#]} Kf6 $1 {[%emt 0:00:47] ( -> ...Qd6+)} ({And not} 37... Kxg6 38. Qe4+ Kf6 (38... Kf7 39. Qc4+ Kg6 40. Qe6+ Kh7 41. Qf5+ Kg8 42. Qe6+ Kh7 43. Qf5+ Kh8 44. Qc8+ Kh7 45. Qf5+ $11) 39. Rf1 $11) 38. Ke4 $2 {[%emt 0:00:53]} (38. Qc6+ $19 Qd6+ 39. Qxd6+ Rxd6 40. Ke4) 38... Qd6 {[%emt 0:03:19]} (38... Re3+ $142 39. Kf4 Qc5 (39... Kxg6 $2 40. Rg1+ Kh7 41. Qb7 $19) 40. Qf8+ Qxf8 41. Kxe3 Qa3+ (41... Kxg6 $2 42. Rg1+ Kh7 43. Rg2 $19) 42. Ke4 Qb2 (42... Kxg6 $2 43. Rg1+ Kh7 44. Rg2 $19) 43. Rf1+ Kxg6 44. Kf3 Qxa2 45. Re1 a5 46. Kg3 Qb3+ 47. Kf2 a4 48. Ke2 Qg3 49. Rd1 a3 50. Rd3 Qh2+ 51. Kf1 Qf4+ 52. Ke2 a2 53. Rd1 Qg4+ 54. Ke1 Qxd1+ 55. Kxd1 a1=Q+ (55... a1=B {leads to mate.} 56. Ke2 Kf5 57. Kf2 g5 58. Kg3 g4 59. Kf2 h5 60. Kg3 h4+ 61. Kf2 h3 62. Kg3 Bd4 63. Kh2 Kf4 64. Kh1 Kg5 65. Kh2 Kh4 66. Kh1 Be3 67. Kh2 g3+ 68. Kh1 g2+ 69. Kh2 g1=Q#) 56. Kc2 Qa3 57. Kd2 Kf5 58. Kc2 Ke4 59. Kb1 Kd4 60. Kc2 Qa2+ 61. Kd1 Kd3 62. Ke1 Qe2#) 39. Rf1+ {[%emt 0:00:27]} (39. Qf8+ $19 Qxf8 40. Rf1+ Kxg6 41. Rxf8) 39... Kxg6 {[%emt 0:00:07][%csl Gd3][%cal Rd6d4]} 40. Qe8+ {[%emt 0:00:43]} Kh7 {[%emt 0:00:16]} 41. Qb5 {[%emt 0:00:35] Repels Qd5+} Qd4+ {[%emt 0:00:24] Black mates.} 42. Kf5 {[%emt 0:00:01]} g6+ {[%emt 0:00:36]} 43. Ke6 {[%emt 0:00:02]} Re3+ {[%emt 0:00:06]} 44. Kf7 {[%emt 0:00:10]} Qg7# {[%emt 0:00:04] Weighted Error Value: White=0.86/Black=0.22 (precise) .  Loses game:     	White=1     	---        Mistake:       	White=3     	Black=1      Inaccurate:     	White=3     	Black=2      OK:         	White=10    	Black=12     Best:        	White=4     	Black=3      Strong:       	---       	Black=3} 0-1

[Event "15th Chennai GM Open 2025"]
[Site "Chennai"]
[Date "2025.01.07"]
[Round "8.9"]
[White "Venkatesh, M.R."]
[Black "Anadkat Kartavya"]
[Result "1-0"]
[ECO "C74"]
[WhiteElo "2362"]
[BlackElo "2139"]
[Annotator "TA"]
[PlyCount "121"]
[EventDate "2025.01.02"]
[EventType "swiss"]
[EventCountry "IND"]
[SourceTitle "playchess.com"]
[Source "ChessBase"]
[SourceQuality "1"]
[TimeControl "5400+30"]

{[%evp 24,121,156,162,155,107,120,94,96,74,71,78,72,65,115,122,139,141,142,141,216,209,211,195,204,164,158,164,164,167,167,168,207,175,206,168,198,168,237,218,223,229,248,227,233,225,306,306,370,357,350,273,373,346,397,397,398,384,397,397,459,436,437,445,490,483,378,378,472,420,490,490,436,369,579,579,579,579,564,517,480,480,480,434,480,480,725,472,1645,1506,6047,3208,6605,6205,5604,2935,12838,5118,5604,2372]} 1. e4 {[%emt 0:00:52]} e5 {[%emt 0:03:05]} 2. Nf3 {[%emt 0:00:12]} Nc6 {[%emt 0:00:05]} 3. Bb5 {[%emt 0:00:08]} a6 {[%emt 0:03:18]} 4. Ba4 {[%emt 0:00:06]} d6 {[%emt 0:00:04]} 5. c3 {[%emt 0:02:50]} f5 {[%emt 0:00:05]} 6. exf5 {[%emt 0:18:57]} Bxf5 {[%emt 0:00:27]} 7. d4 {[%emt 0:00:12]} e4 {[%emt 0:01:23]} 8. Ng5 {[%emt 0:02:02]} d5 {[%emt 0:16:02]} 9. f3 {[%emt 0:05:08]} exf3 {[%emt 0:14:48]} 10. O-O {[%emt 0:03:40]} Qd7 {[%emt 0:13:58]} 11. Qxf3 {[%emt 0:01:55]} Nh6 {[%emt 0:00:13]} 12. Qh5+ {[%emt 0:25:18]} g6 {[%emt 0:20:57]} 13. Re1+ {[%emt 0:03:32]} Kd8 {[%emt 0:00:02] [#]} 14. Qh4 {[%emt 0:00:50]} ({Better is} 14. Qf3 $1) 14... Kc8 $16 {[%emt 0:00:15]} 15. Bxc6 {[%emt 0:05:51]} bxc6 {[%emt 0:00:38]} 16. Nd2 {[%emt 0:02:04]} Nf7 {[%emt 0:03:17]} 17. Nxf7 {[%emt 0:04:35]} (17. Nxh7 $2 Bd6 18. c4 g5 $19) 17... Qxf7 {[%emt 0:00:02]} 18. Nf3 {[%emt 0:00:24]} Bd6 {[%emt 0:00:03] [#]} (18... h6 $14) 19. Bf4 $1 $16 {[%emt 0:01:24]} Be4 {[%emt 0:06:44]} 20. Bxd6 {[%emt 0:05:55]} cxd6 {[%emt 0:00:01]} 21. Nd2 {[%emt 0:00:11]} g5 {[%emt 0:03:44]} (21... Re8 $16 22. Nxe4 dxe4 23. Rxe4 Kc7) 22. Nxe4 $18 {[%emt 0:00:24]} (22. Qxg5 $6 Bxg2 23. Re7 (23. Kxg2 $2 Rg8 $19) 23... Rg8 24. Rxf7 Rxg5) 22... dxe4 {[%emt 0:01:32]} 23. Qxe4 {[%emt 0:00:07]} Kc7 {[%emt 0:00:56]} 24. Qe7+ {[%emt 0:03:39]} Qxe7 {[%emt 0:00:02]} 25. Rxe7+ {[%emt 0:00:06]} Kb6 {[%emt 0:00:02]} 26. Rae1 {[%emt 0:00:08]} d5 {[%emt 0:00:26]} 27. R1e6 {[%emt 0:02:02]} Rac8 {[%emt 0:03:09]} 28. h3 {[%emt 0:01:32]} a5 {[%emt 0:00:21]} 29. b3 {[%emt 0:00:25]} Rc7 {[%emt 0:00:55]} 30. Kf2 {[%emt 0:01:00]} h5 {[%emt 0:03:09]} (30... a4 $142 31. Rxc7 (31. bxa4 Rxe7 32. Rxe7 Ra8 $18) 31... Kxc7 32. Re7+ (32. bxa4 Ra8 $18) 32... Kd6) 31. Rxc7 $18 {[%emt 0:03:47]} Kxc7 {[%emt 0:00:02]} 32. Rg6 {[%emt 0:00:07]} Rf8+ {[%emt 0:02:27]} 33. Ke2 {[%emt 0:00:32]} Re8+ {[%emt 0:02:25]} 34. Kd3 {[%emt 0:00:41]} Rf8 {[%emt 0:00:10]} 35. Rxg5 {[%emt 0:00:06]} Rf2 {[%emt 0:00:06]} 36. a4 {[%emt 0:00:40]} (36. Rxh5 Rxg2 37. Rh7+ Kb6 $16) 36... h4 {[%emt 0:00:38]} 37. Rg4 {[%emt 0:00:39]} Kd6 {[%emt 0:01:27]} 38. c4 {[%emt 0:01:27]} (38. Rxh4 Rxg2 39. Rg4 Rb2 $11) 38... Rb2 {[%emt 0:00:39]} 39. Kc3 {[%emt 0:00:26]} ({Worse is} 39. Rxh4 Rxb3+ 40. Kc2 dxc4 $11) 39... Re2 {[%emt 0:00:04]} 40. Rxh4 {[%emt 0:01:50]} Rxg2 {[%emt 0:00:03]} 41. Rh6+ {[%emt 0:00:08]} Kc7 {[%emt 0:00:58]} 42. Rh7+ {[%emt 0:01:30]} Kb6 {[%emt 0:00:47]} 43. cxd5 {[%emt 0:01:52]} cxd5 {[%emt 0:00:02]} 44. Rh6+ {[%emt 0:00:06]} Kb7 {[%emt 0:00:34]} 45. Rd6 {[%emt 0:00:23]} Rg5 {[%emt 0:00:03]} 46. Kb2 {[%emt 0:01:55]} Rh5 {[%emt 0:00:09]} 47. Kc2 {[%emt 0:01:13]} Ka7 {[%emt 0:00:41]} 48. Rc6 {[%emt 0:00:59]} Rh4 {[%emt 0:01:36]} (48... Rxh3 {is a better defense.} 49. Rc5 Rh2+ 50. Kc1 Rh1+ 51. Kd2 Rh2+ 52. Ke1 Rh1+ 53. Kf2 Ka6 54. Rxd5 Rh2+ 55. Ke1 Kb6 56. Rb5+ Ka6) 49. Rc5 $18 {[%emt 0:00:26]} Rxd4 {[%emt 0:00:02]} 50. Kc3 {[%emt 0:00:22]} Rd1 {[%emt 0:00:17]} 51. Rxa5+ {[%emt 0:00:04]} Kb6 {[%emt 0:00:07]} 52. Ra8 {[%emt 0:00:10]} Rf1 {[%emt 0:01:32]} 53. Rb8+ {[%emt 0:00:45]} Kc7 {[%emt 0:00:25]} 54. Rh8 {[%emt 0:00:11]} Kd6 {[%emt 0:00:52]} (54... Kb7 $142 55. b4 Rc1+ 56. Kb2 Re1) 55. Kb4 {[%emt 0:01:04]} Ke5 {[%emt 0:00:42]} (55... Rf4+ $142 56. Kb5 d4) 56. a5 $18 {[%emt 0:00:12]} d4 {[%emt 0:00:12]} 57. Rd8 {[%emt 0:00:32]} Ke4 {[%emt 0:01:25]} 58. a6 {[%emt 0:00:09]} Rf7 {[%emt 0:00:31]} 59. Kc5 {[%emt 0:00:48]} d3 {[%emt 0:00:09]} 60. b4 {[%emt 0:00:20]} (60. Kb6 $142 Rf6+ 61. Kb7) 60... Rf5+ {[%emt 0:00:46]} 61. Kc4 {[%emt 0:00:30]} (61. Kb6 $142 Rf6+ 62. Kb7 Rf7+ 63. Kb8) 1-0